bitfinex-derivatives/quotes_BTCF0:USTF0_20250121
["timestamp","ask_amount","ask_price","bid_price","bid_amount"]
[1737423260178,0.039604,101120.0,101100.0,0.3608]
[1737423260682,0.3608,101140.0,101100.0,0.3608]
[1737423260886,0.039598,101130.0,101100.0,0.3608]
[1737423261186,0.3608,101120.0,101090.0,0.3608]
[1737423261486,0.039606,101110.0,101100.0,0.3608]
[1737423261688,0.039599,101130.0,101100.0,0.3608]
[1737423261879,0.039599,101130.0,101120.0,0.3608]
[1737423262384,0.3608,101140.0,101090.0,0.3608]
[1737423262891,0.039614,101090.0,101070.0,0.3622841]
[1737423263077,0.3608,101110.0,101080.0,0.3608]
[1737423263280,0.3608,101110.0,101100.0,0.3608]
[1737423263281,0.039607,101110.0,101100.0,0.3608]
[1737423263585,0.039607,101110.0,101090.0,0.3608]
[1737423264488,0.03961,101100.0,101090.0,0.3608]
[1737423264781,1.5,101090.0,101080.0,0.3608]
[1737423264987,1.539614,101090.0,101070.0,0.3622841]
[1737423265374,0.039618,101080.0,101070.0,0.0014841]
[1737423265585,0.039622,101070.0,101050.0,0.3608]
[1737423265887,1.539616,101090.0,101060.0,0.3608]
[1737423266289,0.36681264,101100.0,101060.0,0.3608]
[1737423266587,0.039619,101080.0,101060.0,0.3608]
[1737423266785,0.00601264,101100.0,101070.0,0.17528113]
[1737423266987,0.039615,101090.0,101060.0,0.3608]
[1737423267180,0.039625,101060.0,101050.0,0.3608]
[1737423267380,1.5,101070.0,101050.0,0.3608]
[1737423267695,0.039611,101100.0,101070.0,0.039621]
[1737423267986,0.3608,101130.0,101090.0,0.3608]
[1737423267987,0.039604,101120.0,101090.0,0.3608]
[1737423268180,0.039604,101120.0,101090.0,0.57569313]
[1737423268581,0.400404,101120.0,101100.0,0.3608]
[1737423268776,0.039613,101100.0,101060.0,0.3608]
[1737423268985,0.039619,101080.0,101050.0,0.400948]
[1737423269184,0.039619,101080.0,101050.0,0.400428]
[1737423269385,0.400411,101100.0,101060.0,0.039622]
[1737423269682,0.039611,101100.0,101080.0,0.3608]
[1737423269887,0.039614,101090.0,101060.0,0.039622]
[1737423270183,0.039614,101090.0,101060.0,0.400422]
[1737423270387,0.039618,101080.0,101050.0,0.3608]
[1737423270580,0.039618,101080.0,101050.0,0.45469275]
[1737423270782,0.039618,101080.0,101060.0,0.400424]
[1737423270981,0.3608,101090.0,101040.0,0.40053703]
[1737423271187,0.3608,101080.0,101040.0,0.36090503]
[1737423271484,0.400429,101050.0,101040.0,3e-08]
[1737423271684,0.039645,101010.0,101000.0,1.30128206]
[1737423271886,0.039645,101010.0,101000.0,1.24699529]
[1737423272088,0.400445,101010.0,101000.0,1.24699529]
[1737423272284,0.039645,101010.0,101000.0,1.24699529]
[1737423272589,0.400445,101010.0,101000.0,0.64477429]
[1737423272789,0.039649,101000.0,100990.0,0.52623839]
[1737423272998,0.400449,101000.0,100990.0,0.35507939]
[1737423273290,0.039653,100990.0,100980.0,0.439821]
[1737423273586,0.039657,100980.0,100970.0,0.09413126]
[1737423273792,0.039657,100980.0,100970.0,4e-08]
[1737423273793,0.400457,100980.0,100970.0,4e-08]
[1737423274095,0.039665,100960.0,100950.0,0.33547606]
[1737423274286,0.400465,100960.0,100950.0,0.33547606]
[1737423274486,0.761265,100960.0,100950.0,0.33547606]
[1737423274979,0.039665,100960.0,100950.0,0.33547606]
[1737423275179,1.5,100960.0,100950.0,0.33547606]
[1737423275385,0.48828,100970.0,100950.0,0.33547606]
[1737423275789,0.400465,100960.0,100950.0,0.33547606]
[1737423276289,0.400465,100960.0,100930.0,0.00010015]
[1737423276485,0.3608,100970.0,100930.0,0.40057515]
[1737423276694,0.400464,100970.0,100930.0,0.03977515]
[1737423277002,0.00010287,100960.0,100940.0,0.039672]
[1737423277498,0.00010287,100960.0,100930.0,0.36090015]
[1737423277686,0.00010287,100960.0,100950.0,0.039669]
[1737423278195,0.40723848,100970.0,100930.0,0.40057515]
[1737423278394,0.400463,100970.0,100930.0,0.40057515]
[1737423278799,0.400463,100970.0,100930.0,0.36090015]
[1737423279000,0.3608,100950.0,100930.0,0.00010015]
[1737423279302,0.039673,100940.0,100930.0,0.00010015]
[1737423280085,0.039673,100940.0,100920.0,0.00148599]
[1737423280388,0.039687,100910.0,100880.0,0.3608]
[1737423280696,0.039794,100900.0,100870.0,0.2564]
[1737423280898,9.466e-05,100890.0,100870.0,0.2564]
[1737423281188,9.466e-05,100890.0,100870.0,0.83218113]
[1737423281398,9.466e-05,100890.0,100880.0,0.400496]
[1737423281590,9.466e-05,100890.0,100870.0,0.79248113]
[1737423281791,0.000105,100880.0,100870.0,0.79248113]
[1737423281993,0.000105,100880.0,100870.0,0.53608113]
[1737423282195,0.000105,100880.0,100870.0,0.3608]
[1737423282390,0.000105,100880.0,100860.0,0.6167]
[1737423282695,0.000105,100880.0,100870.0,0.57578113]
[1737423283194,0.000105,100880.0,100870.0,0.3608]
[1737423283587,0.000105,100880.0,100860.0,0.3608]
[1737423283896,0.0397,100870.0,100850.0,0.49702686]
[1737423284093,0.000105,100860.0,100840.0,0.25489869]
[1737423284395,0.000105,100860.0,100850.0,0.13622686]
[1737423284591,0.400609,100860.0,100840.0,0.25489869]
[1737423284791,0.039809,100860.0,100850.0,0.13622686]
[1737423285099,0.039712,100840.0,100820.0,0.3608]
[1737423285399,0.039718,100830.0,100800.0,0.84612686]
[1737423285588,0.039718,100830.0,100800.0,0.23622686]
[1737423285995,7.002e-05,100820.0,100810.0,0.039724]
[1737423286194,7.002e-05,100820.0,100810.0,0.17595086]
[1737423286395,7.002e-05,100820.0,100800.0,0.1]
[1737423286585,7.002e-05,100820.0,100810.0,0.039724]
[1737423286789,0.3608,100830.0,100820.0,0.03972]
[1737423287094,0.3608,100830.0,100820.0,0.17594686]
[1737423287295,0.27668925,100830.0,100820.0,0.13622686]
[1737423287497,0.59777325,100830.0,100800.0,0.09715359]
[1737423287700,0.23697325,100830.0,100820.0,0.17594686]
[1737423287888,0.23697325,100830.0,100800.0,0.49702686]
[1737423288085,0.00012058,100820.0,100810.0,0.039723]
[1737423288487,0.00012058,100820.0,100800.0,0.13622686]
[1737423288693,0.00012058,100820.0,100810.0,0.039724]
[1737423288892,0.40064058,100820.0,100790.0,0.04121607]
[1737423289089,0.3608,100800.0,100790.0,0.13622686]
[1737423289297,0.40064244,100800.0,100780.0,0.039735]
[1737423289495,0.36091444,100800.0,100780.0,0.039735]
[1737423289894,0.00011444,100800.0,100790.0,0.039732]
[1737423290099,0.195321,100830.0,100790.0,0.400532]
[1737423290294,0.195321,100830.0,100810.0,0.039721]
[1737423290502,0.195321,100830.0,100800.0,0.02693184]
[1737423290697,0.195321,100830.0,100820.0,0.17594686]
[1737423290899,0.00636,100830.0,100820.0,0.17594686]
[1737423291097,0.139515,100840.0,100830.0,0.039716]
[1737423291300,0.16808545,100850.0,100840.0,0.039712]
[1737423291498,0.4230788,100870.0,100860.0,0.039704]
[1737423291707,0.25498536,100880.0,100870.0,0.0397]
[1737423292012,0.24272901,100890.0,100880.0,0.039696]
[1737423292304,0.3608,100950.0,100900.0,0.039688]
[1737423292497,0.039674,100940.0,100910.0,0.039681]
[1737423292802,0.039674,100940.0,100890.0,0.36088824]
[1737423292803,0.3608,100920.0,100890.0,0.36088824]
[1737423293004,0.3608,100910.0,100890.0,8.824e-05]
[1737423293194,0.400482,100920.0,100890.0,0.1760051]
[1737423293396,0.039685,100910.0,100890.0,0.1760051]
[1737423293592,0.3608,100900.0,100890.0,8.824e-05]
[1737423293807,0.400488,100900.0,100890.0,8.824e-05]
[1737423293998,0.761288,100900.0,100890.0,8.824e-05]
[1737423294194,0.7216,100900.0,100890.0,8.824e-05]
[1737423294399,0.3608,100910.0,100900.0,0.039688]
[1737423295200,0.36164,100930.0,100910.0,0.039684]
[1737423295409,0.659973,100940.0,100910.0,0.039684]
[1737423295410,0.3608,100940.0,100930.0,0.039676]
[1737423295606,0.40047,100950.0,100930.0,0.17590286]
[1737423295912,0.039679,100930.0,100910.0,0.039683]
[1737423296102,0.3608,100940.0,100910.0,0.039683]
[1737423296407,0.3608,100930.0,100900.0,0.13622686]
[1737423296701,0.039682,100920.0,100900.0,0.17591186]
[1737423296904,0.400477,100930.0,100910.0,0.039683]
[1737423297207,0.3608,100920.0,100890.0,8.824e-05]
[1737423297406,0.3608,100910.0,100890.0,8.824e-05]
[1737423297594,0.400485,100910.0,100890.0,8.824e-05]
[1737423297798,0.039688,100900.0,100890.0,8.824e-05]
[1737423298194,1.539688,100900.0,100890.0,8.824e-05]
[1737423298398,1.5,100900.0,100890.0,8.824e-05]
[1737423298603,1.5,100900.0,100890.0,0.03978024]
[1737423298604,1.8608,100900.0,100890.0,0.03978024]
[1737423298910,0.3608,100920.0,100900.0,0.039687]
[1737423299508,0.40048,100920.0,100900.0,0.039687]
[1737423299697,0.3608,100920.0,100900.0,0.039687]
[1737423299902,0.3608,100920.0,100910.0,0.039684]
[1737423300205,0.3608,100930.0,100920.0,0.039677]
[1737423300401,0.3608,100930.0,100900.0,0.13622686]
[1737423300606,0.3608,100910.0,100890.0,8.824e-05]
[1737423300907,0.3608,100900.0,100890.0,0.03977924]
[1737423301304,0.315782,100920.0,100890.0,8.824e-05]
[1737423301305,0.6369,100920.0,100890.0,8.824e-05]
[1737423301510,0.2761,100920.0,100910.0,0.039684]
[1737423301708,0.3608,100940.0,100930.0,0.039676]
[1737423301903,0.039677,100930.0,100910.0,0.039682]
[1737423302303,0.3608,100920.0,100900.0,0.3608]
[1737423302512,0.039685,100910.0,100890.0,0.03978024]
[1737423302713,0.400485,100910.0,100890.0,0.03978024]
[1737423303501,0.039692,100890.0,100880.0,0.0014868]
[1737423303814,0.039697,100880.0,100860.0,0.039702]
[1737423303998,0.3608,100870.0,100860.0,0.039702]
[1737423304617,0.00011836,100870.0,100860.0,0.400502]
[1737423304911,0.00011836,100870.0,100860.0,0.039702]
[1737423305613,0.00011836,100870.0,100860.0,0.400502]
[1737423305821,0.36091836,100870.0,100830.0,0.13622686]
[1737423306109,0.3608,100850.0,100840.0,0.039712]
[1737423306313,0.36087294,100850.0,100840.0,0.039712]
[1737423306523,7.294e-05,100850.0,100840.0,0.17593886]
[1737423306708,7.294e-05,100850.0,100840.0,0.53673886]
[1737423306908,7.294e-05,100850.0,100840.0,0.83673886]
[1737423307212,0.3608,100880.0,100860.0,0.0397]
[1737423307513,0.3608,100880.0,100870.0,0.0397]
[1737423307714,0.039701,100870.0,100850.0,0.039707]
[1737423307913,0.400501,100870.0,100850.0,0.039707]
[1737423308111,0.3608,100870.0,100860.0,0.039704]
[1737423308415,0.3608,100880.0,100870.0,0.0397]
[1737423308913,1.3e-07,100880.0,100870.0,1.29667419]
[1737423309113,0.3608,100930.0,100920.0,0.03968]
[1737423309315,0.6131,100950.0,100910.0,0.13622686]
[1737423309507,0.6131,100950.0,100940.0,0.039673]
[1737423309717,0.400458,100980.0,100940.0,0.039673]
[1737423310016,0.3608,100980.0,100970.0,0.039661]
[1737423310219,0.86860731,100990.0,100980.0,0.039657]
[1737423310220,0.50780731,100990.0,100980.0,0.039657]
[1737423311417,3.1e-07,100990.0,100980.0,0.1386816]
[1737423311617,3.1e-07,100990.0,100980.0,0.039657]
[1737423312012,3.1e-07,100990.0,100980.0,0.7994816]
[1737423312317,0.659732,101050.0,100980.0,0.85216588]
[1737423312318,0.6201,101050.0,100980.0,0.85216588]
[1737423312514,0.3608,101040.0,101010.0,0.400442]
[1737423312720,0.3608,101030.0,101010.0,0.039642]
[1737423313012,0.400442,101020.0,100980.0,0.17588086]
[1737423313209,0.400442,101020.0,100990.0,0.039652]
[1737423313512,0.621,101040.0,101020.0,0.03964]
[1737423313811,0.2602,101040.0,101020.0,0.17586686]
[1737423314214,0.2602,101040.0,101030.0,0.039637]
[1737423314527,0.2602,101040.0,101030.0,0.400437]
[1737423315511,0.3608,101050.0,101040.0,0.039633]
[1737423315719,0.3608,101050.0,101040.0,0.17585986]
[1737423315916,0.42340363,101080.0,101040.0,0.79702686]
[1737423316105,0.17060363,101080.0,101070.0,0.17584886]
[1737423316415,0.89220363,101080.0,101040.0,0.13622686]
[1737423316612,0.3608,101070.0,101050.0,0.039627]
[1737423316812,0.57102263,101080.0,101050.0,0.039627]
[1737423317005,0.57102263,101080.0,101050.0,0.400427]
[1737423317212,0.039622,101070.0,101040.0,0.13622686]
[1737423317512,0.3608,101060.0,101040.0,0.17585886]
[1737423317818,0.3608,101060.0,101030.0,0.039636]
[1737423318129,0.3608,101040.0,101010.0,0.13622686]
[1737423318316,0.6269,101050.0,101030.0,0.17586286]
[1737423318515,0.2661,101050.0,101040.0,0.039633]
[1737423318712,0.2661,101050.0,101040.0,0.400433]
[1737423318913,0.2661,101050.0,101040.0,0.039633]
[1737423319118,1.5,101040.0,101030.0,0.17586386]
[1737423319309,0.2661,101050.0,101030.0,0.17586386]
[1737423319310,0.2661,101050.0,101040.0,0.039633]
[1737423319705,1.5,101070.0,101030.0,0.49702686]
[1737423319915,0.3608,101080.0,101070.0,0.039622]
[1737423320112,0.3608,101080.0,101050.0,0.17585386]
[1737423320410,0.3608,101080.0,101060.0,0.039624]
[1737423320614,0.3608,101080.0,101070.0,0.039622]
[1737423320815,0.2583,101090.0,101070.0,0.17584886]
[1737423321008,0.3608,101080.0,101070.0,0.039622]
[1737423321209,0.6191,101090.0,101070.0,0.039622]
[1737423321420,0.3608,101080.0,101070.0,0.039622]
[1737423321713,0.6191,101090.0,101080.0,0.039618]
[1737423322716,0.6191,101090.0,101060.0,0.039624]
[1737423322913,0.3608,101090.0,101060.0,0.13622686]
[1737423323115,0.3608,101100.0,101080.0,0.13622686]
[1737423323314,0.3608,101100.0,101090.0,0.039614]
[1737423323517,0.3608,101120.0,101080.0,0.13622686]
[1737423323718,0.302495,101140.0,101100.0,0.13622686]
[1737423323719,0.63112379,101140.0,101100.0,0.13622686]
[1737423323923,0.2629,101140.0,101130.0,0.039598]
[1737423325213,0.663296,101140.0,101110.0,0.039605]
[1737423325413,0.3608,101120.0,101090.0,0.039612]
[1737423325614,0.2515,101130.0,101100.0,0.13622686]
[1737423325907,0.2515,101130.0,101120.0,0.039602]
[1737423326514,0.2515,101130.0,101100.0,0.17583386]
[1737423326818,1.900403,101120.0,101080.0,0.13622686]
[1737423327115,0.400406,101110.0,101090.0,0.039612]
[1737423327311,0.651906,101110.0,101090.0,0.039612]
[1737423327513,0.291106,101110.0,101090.0,0.039612]
[1737423327813,0.039616,101090.0,101060.0,0.17584986]
[1737423328117,0.3608,101070.0,101050.0,0.03972356]
[1737423328311,0.3608,101070.0,101050.0,9.556e-05]
[1737423328514,0.3608,101070.0,101050.0,0.17595042]
[1737423328721,0.3608,101060.0,101050.0,0.03972356]
[1737423329022,0.00080001,101120.0,101080.0,0.039618]
[1737423329023,0.3608,101100.0,101080.0,0.039618]
[1737423329223,0.3608,101120.0,101100.0,0.039609]
[1737423329531,0.3608,101120.0,101110.0,0.17583286]
[1737423329719,0.3056,101130.0,101110.0,0.17583286]
[1737423330112,0.3056,101130.0,101110.0,0.039606]
[1737423330319,0.3608,101120.0,101110.0,0.039606]
[1737423330831,0.3608,101120.0,101090.0,0.17583686]
[1737423331016,0.3608,101120.0,101100.0,0.039608]
[1737423331522,0.6268,101130.0,101100.0,0.039608]
[1737423331725,0.400404,101120.0,101090.0,0.039612]
[1737423331912,0.652104,101120.0,101100.0,0.039609]
[1737423332112,0.652104,101120.0,101110.0,0.13622686]
[1737423332113,0.3608,101120.0,101110.0,0.13622686]
[1737423332316,0.3608,101140.0,101130.0,0.039598]
[1737423332518,0.3608,101150.0,101140.0,0.039594]
[1737423332920,0.3608,101150.0,101110.0,0.49702686]
[1737423333127,0.65931777,101160.0,101140.0,0.039592]
[1737423333517,0.6125,101160.0,101150.0,0.03959]
[1737423333920,0.652087,101160.0,101130.0,0.17582286]
[1737423334121,0.3608,101140.0,101120.0,0.039602]
[1737423334321,0.400395,101140.0,101120.0,0.039602]
[1737423334625,1.5,101120.0,101100.0,0.039607]
[1737423334821,0.3608,101110.0,101080.0,0.00148366]
[1737423335023,0.3608,101100.0,101080.0,0.04110166]
[1737423335223,0.3608,101090.0,101080.0,0.00148366]
[1737423335430,0.400414,101090.0,101080.0,0.00148366]
[1737423335624,1.900414,101090.0,101080.0,0.00148366]
[1737423335824,1.539614,101090.0,101070.0,0.03962]
[1737423336023,0.3608,101080.0,101070.0,0.03962]
[1737423336333,0.400419,101080.0,101050.0,0.34934695]
[1737423336630,1.900419,101080.0,101060.0,0.039625]
[1737423336830,0.3608,101070.0,101050.0,0.34934695]
[1737423337041,0.36160001,101080.0,101070.0,0.039622]
[1737423337331,0.2491,101110.0,101070.0,0.13622686]
[1737423337332,0.6099,101110.0,101070.0,0.13622686]
[1737423337527,0.649506,101110.0,101080.0,0.039615]
[1737423337728,0.649506,101110.0,101090.0,0.039612]
[1737423337927,0.2491,101110.0,101100.0,0.03961]
[1737423338224,0.3608,101140.0,101100.0,0.40041]
[1737423338429,0.5056,101170.0,101160.0,0.039586]
[1737423338430,0.25834554,101170.0,101160.0,0.039586]
[1737423338730,0.2506,101170.0,101160.0,0.039586]
[1737423339435,0.2506,101170.0,101160.0,0.400386]
[1737423339735,0.04,101180.0,101170.0,0.039582]
[1737423339935,0.04,101180.0,101170.0,0.17580886]
[1737423340929,0.4008,101180.0,101150.0,0.13622686]
[1737423341225,0.400383,101170.0,101150.0,0.17581686]
[1737423341428,0.400383,101170.0,101140.0,0.039593]
[1737423341429,0.400387,101160.0,101140.0,0.039593]
[1737423341636,0.039583,101170.0,101150.0,0.17581486]
[1737423342035,0.400383,101170.0,101150.0,0.17581486]
[1737423342334,0.3608,101160.0,101120.0,7.315e-05]
[1737423342537,0.400395,101140.0,101120.0,0.03967215]
[1737423342727,0.301691,101150.0,101120.0,0.03967215]
[1737423342927,0.301691,101150.0,101130.0,0.039597]
[1737423343129,0.3608,101140.0,101130.0,0.17582386]
[1737423343329,0.2621,101150.0,101130.0,0.13622686]
[1737423343527,0.04,101180.0,101140.0,0.3608]
[1737423343828,0.3608,101170.0,101160.0,0.13622686]
[1737423344040,0.4008,101180.0,101160.0,0.13622686]
[1737423344335,0.04,101180.0,101170.0,0.039582]
[1737423344547,0.04,101180.0,101150.0,0.3608]
[1737423344736,0.3608,101160.0,101130.0,0.30962339]
[1737423345038,0.400387,101160.0,101140.0,0.039593]
[1737423345237,0.3608,101150.0,101140.0,0.039593]
[1737423345437,0.400392,101150.0,101130.0,0.17339653]
[1737423345630,0.3608,101140.0,101120.0,0.23468231]
[1737423345828,0.3608,101130.0,101110.0,0.33008162]
[1737423346029,0.400399,101130.0,101110.0,0.29047762]
[1737423346230,0.3608,101130.0,101120.0,0.039601]
[1737423346427,0.3608,101130.0,101110.0,0.29047762]
[1737423346635,0.3608,101120.0,101110.0,0.29047762]
[1737423346828,0.40047515,101120.0,101110.0,0.29047762]
[1737423347035,0.400402,101120.0,101110.0,0.28899422]
[1737423347236,0.039606,101110.0,101100.0,0.28899422]
[1737423347540,0.03961,101100.0,101090.0,0.34679306]
[1737423347743,0.039617,101090.0,101070.0,0.29427119]
[1737423348035,1.50775139,101110.0,101070.0,0.43049805]
[1737423348241,7.315e-05,101100.0,101090.0,0.17583986]
[1737423348542,7.315e-05,101100.0,101090.0,0.039613]
[1737423348738,7.315e-05,101100.0,101080.0,0.039617]
[1737423349033,7.315e-05,101100.0,101090.0,0.17584086]
[1737423349239,0.36087315,101100.0,101090.0,0.17584086]
[1737423349538,0.3608,101130.0,101120.0,0.039602]
[1737423349731,0.3608,101150.0,101130.0,0.039596]
[1737423350240,0.3608,101160.0,101140.0,0.17581886]
[1737423350433,0.3608,101160.0,101150.0,0.03959]
[1737423351736,0.3608,101160.0,101150.0,0.17581686]
[1737423352440,0.4008,101180.0,101170.0,0.039582]
[1737423352642,0.4008,101180.0,101170.0,0.17580886]
[1737423353543,0.04,101180.0,101170.0,0.17580886]
[1737423353740,0.7616,101180.0,101170.0,0.039582]
[1737423353949,0.04,101180.0,101170.0,0.039582]
[1737423354130,0.04,101180.0,101170.0,0.17580886]
[1737423354339,0.21526584,101200.0,101190.0,0.039575]
[1737423354535,0.21526584,101200.0,101190.0,0.21580186]
[1737423355335,0.21526584,101200.0,101190.0,0.51580186]
[1737423355536,0.31698106,101210.0,101200.0,0.039571]
[1737423355737,0.67778106,101210.0,101200.0,0.079571]
[1737423355937,1.03858106,101210.0,101160.0,0.00148276]
[1737423356139,0.039592,101150.0,101130.0,0.03967705]
[1737423356338,0.3608,101170.0,101150.0,0.03959]
[1737423356532,0.3608,101170.0,101160.0,0.039586]
[1737423356737,0.3608,101190.0,101160.0,0.17581286]
[1737423356940,0.400375,101190.0,101160.0,0.17581286]
[1737423357243,0.039587,101160.0,101140.0,0.039592]
[1737423357544,0.039592,101150.0,101130.0,0.03967605]
[1737423357745,0.400392,101150.0,101130.0,0.03967605]
[1737423357943,0.3608,101140.0,101130.0,0.03967605]
[1737423358140,0.3608,101150.0,101130.0,0.03967605]
[1737423358336,1.50064,101170.0,101140.0,0.13622686]
[1737423358543,0.400382,101180.0,101140.0,0.13622686]
[1737423358850,0.400383,101170.0,101140.0,0.58878902]
[1737423359035,0.3608,101160.0,101150.0,0.03959]
[1737423359234,0.039583,101170.0,101150.0,0.03959]
[1737423359441,0.3608,101160.0,101150.0,0.03959]
[1737423359746,0.91292822,101200.0,101160.0,0.039585]
[1737423359747,0.400379,101180.0,101160.0,0.039585]
[1737423359941,0.400379,101180.0,101140.0,0.13622686]
[1737423359942,0.3608,101180.0,101140.0,0.13622686]
[1737423360138,0.3608,101150.0,101140.0,0.22798312]
[1737423360546,0.400379,101180.0,101160.0,0.039586]
[1737423360847,0.039582,101170.0,101150.0,0.03959]
[1737423361036,0.400379,101180.0,101160.0,0.039584]
[1737423361439,0.3608,101180.0,101170.0,0.039582]
[1737423361636,0.1440823,101200.0,101190.0,0.039575]
[1737423362842,0.1440823,101200.0,101190.0,0.13839411]
[1737423363046,0.17289876,101210.0,101200.0,0.039571]
[1737423363247,0.42650908,101230.0,101220.0,0.039563]
[1737423363440,0.42650908,101230.0,101220.0,0.17578986]
[1737423363948,0.78730908,101230.0,101220.0,0.17578986]
[1737423364350,0.42650908,101230.0,101220.0,0.17578986]
[1737423364849,0.42650908,101230.0,101220.0,0.17484032]
[1737423365447,0.78730908,101230.0,101220.0,0.17484032]
[1737423365648,0.78730908,101230.0,101220.0,0.03861346]
[1737423365948,0.78730908,101230.0,101190.0,0.3608]
[1737423366251,0.78730908,101230.0,101190.0,0.039575]
[1737423366252,0.039572,101200.0,101190.0,0.039575]
[1737423366447,0.039567,101210.0,101190.0,0.039574]
[1737423367154,0.3608,101230.0,101180.0,0.49702686]
[1737423367453,0.3608,101230.0,101220.0,0.039563]
[1737423367754,0.3608,101230.0,101200.0,0.13622686]
[1737423368050,0.40036,101230.0,101210.0,0.039566]
[1737423368247,1.50056001,101250.0,101210.0,0.039566]
[1737423368248,0.36136001,101250.0,101220.0,0.13622686]
[1737423368447,0.3608,101250.0,101220.0,0.53658786]
[1737423368641,0.3608,101250.0,101240.0,0.039555]
[1737423369449,0.400354,101250.0,101230.0,0.039559]
[1737423369842,0.400354,101250.0,101210.0,0.3608]
[1737423370038,0.039556,101240.0,101220.0,0.039563]
[1737423370242,0.3608,101250.0,101210.0,0.13622686]
[1737423370546,0.039555,101240.0,101220.0,0.039563]
[1737423371048,0.3608,101250.0,101240.0,0.039555]
[1737423371954,0.3608,101260.0,101230.0,0.13622686]
[1737423372148,0.3608,101260.0,101250.0,0.039548]
[1737423372753,0.00056001,101270.0,101260.0,0.039547]
[1737423373159,1e-08,101270.0,101260.0,0.7991173]
[1737423373546,0.1,101300.0,101290.0,0.039535]
[1737423373854,0.4608,101300.0,101290.0,0.039535]
[1737423374364,0.1,101300.0,101280.0,0.039538]
[1737423374568,0.3608,101310.0,101290.0,0.039535]
[1737423374773,0.25464831,101350.0,101300.0,0.49702686]
[1737423375065,0.25464831,101350.0,101340.0,0.17574286]
[1737423375461,0.59634483,101350.0,101340.0,0.17574286]
[1737423375661,0.59634483,101350.0,101340.0,0.13622686]
[1737423376266,0.99665683,101350.0,101340.0,0.13622686]
[1737423376968,0.039517,101340.0,101330.0,0.13622686]
[1737423377268,0.3608,101340.0,101330.0,0.13622686]
[1737423377481,0.74201252,101340.0,101330.0,0.13622686]
[1737423377771,0.38121252,101340.0,101330.0,0.13622686]
[1737423377966,0.74201252,101340.0,101310.0,0.52782182]
[1737423378169,0.70249652,101330.0,101310.0,0.39159496]
[1737423378362,0.34169652,101320.0,101310.0,0.48829482]
[1737423378560,0.74202052,101320.0,101310.0,0.35206796]
[1737423378974,0.04583842,101280.0,101250.0,0.34166265]
[1737423379272,0.04583842,101260.0,101250.0,0.38121265]
[1737423379474,0.400341,101280.0,101260.0,0.039547]
[1737423379475,0.40663842,101280.0,101260.0,0.039547]
[1737423379670,0.04583842,101280.0,101270.0,0.039543]
[1737423379969,9.133e-05,101280.0,101270.0,0.46640078]
[1737423380168,0.3608,101330.0,101270.0,1.12720078]
[1737423380466,0.3608,101330.0,101300.0,0.17575586]
[1737423380467,0.04583842,101320.0,101300.0,0.17575586]
[1737423380671,0.04583842,101320.0,101300.0,0.13622686]
[1737423380867,0.3608,101350.0,101320.0,0.039522]
[1737423381070,0.04583842,101340.0,101320.0,0.17574886]
[1737423381269,0.6122,101360.0,101330.0,0.03952]
[1737423381480,0.04583842,101340.0,101330.0,0.03952]
[1737423381966,0.3608,101350.0,101330.0,0.03952]
[1737423382178,0.04583842,101340.0,101330.0,0.03952]
[1737423383061,0.04583842,101340.0,101320.0,0.13622686]
[1737423383263,0.76743842,101330.0,101310.0,0.039525]
[1737423383469,0.3608,101340.0,101300.0,0.13622686]
[1737423383669,0.04583842,101350.0,101340.0,0.039516]
[1737423383869,0.3608,101360.0,101320.0,0.13622686]
[1737423384065,0.8916,101370.0,101340.0,0.039514]
[1737423384261,0.40663842,101360.0,101340.0,0.039514]
[1737423384465,0.04583842,101350.0,101340.0,0.039514]
[1737423384778,0.04583842,101350.0,101330.0,0.039518]
[1737423384779,1.54583842,101350.0,101330.0,0.039518]
[1737423384960,0.04583842,101310.0,101300.0,0.3608]
[1737423385274,0.400317,101340.0,101290.0,0.49850752]
[1737423385275,0.039522,101330.0,101310.0,0.039527]
[1737423385461,0.40083401,101350.0,101320.0,0.039522]
[1737423385665,0.04583842,101330.0,101320.0,0.039522]
[1737423385872,0.400314,101350.0,101320.0,0.039522]
[1737423386064,0.40663842,101350.0,101330.0,0.03952]
[1737423386265,0.40663842,101350.0,101340.0,0.039516]
[1737423386466,0.04583842,101340.0,101330.0,0.039518]
[1737423386862,0.04583842,101340.0,101300.0,0.400331]
[1737423387068,0.04583842,101310.0,101300.0,0.039529]
[1737423387368,0.44616742,101310.0,101290.0,0.65291158]
[1737423387567,0.04583842,101300.0,101290.0,0.29211158]
[1737423387777,0.08537042,101300.0,101290.0,0.29211158]
[1737423387967,0.3608,101300.0,101260.0,0.80493691]
[1737423388163,0.039543,101270.0,101260.0,0.40459191]
[1737423388469,0.761143,101270.0,101260.0,0.40459191]
[1737423388770,0.039551,101250.0,101240.0,0.46239075]
[1737423388964,0.400351,101250.0,101240.0,0.46239075]
[1737423389170,0.3608,101270.0,101240.0,0.46239075]
[1737423389372,0.3608,101280.0,101240.0,0.46239075]
[1737423389577,0.039551,101250.0,101240.0,0.46239075]
[1737423389974,0.3608,101250.0,101230.0,0.00012712]
[1737423390277,0.039551,101250.0,101230.0,0.36092712]
[1737423390477,0.3608,101270.0,101240.0,0.039555]
[1737423390675,0.039547,101260.0,101240.0,0.039555]
[1737423390972,0.039553,101250.0,101230.0,0.00012712]
[1737423391175,0.039555,101240.0,101230.0,0.00012712]
[1737423391379,0.400355,101240.0,101230.0,0.00012712]
[1737423392082,0.039563,101220.0,101210.0,0.40745095]
[1737423392379,0.400363,101220.0,101210.0,0.40745095]
[1737423392577,0.53658986,101220.0,101210.0,0.40745095]
[1737423392766,0.400363,101220.0,101210.0,0.00445095]
[1737423392970,0.039563,101220.0,101210.0,0.00445095]
[1737423393374,0.40036,101230.0,101210.0,0.00445095]
[1737423393580,0.0396514,101220.0,101210.0,0.00445095]
[1737423393780,0.039567,101210.0,101200.0,0.1]
[1737423393975,0.3608,101220.0,101200.0,0.1]
[1737423394175,8.773e-05,101210.0,101200.0,0.1]
[1737423394581,0.03965473,101210.0,101200.0,0.1]
[1737423395080,8.773e-05,101210.0,101200.0,0.1]
[1737423395767,8.773e-05,101210.0,101200.0,0.500371]